lending/lending_fUSD_20240111
["ID","MTS","AMOUNT","RATE_DAILY","PERIOD"]
[311164629,1704953438081,-1900.0,0.000367,13]
[311164630,1704953438091,-2900.0,0.000368,13]
[311164631,1704953438101,-153.19,0.00036888,2]
[311164632,1704953438111,-3800.0,0.000369,13]
[311164633,1704953438121,-152.44,0.00036935,2]
[311164634,1704953438135,-156.71227431,0.00036963,2]
[311164636,1704953438145,-5000.0,0.00037,3]
[311164638,1704953438155,-1039.85678367,0.00037,2]
[311164640,1704953438168,-8754.14321633,0.00037,2]
[311164642,1704953438178,-650.0,0.00037,3]
[311164644,1704953438188,-500.0,0.00037,2]
[311164646,1704953438198,-2060.47755799,0.00037,2]
[311164648,1704953438208,-1000.0,0.00037051,2]
[311164650,1704953438218,-1600.0,0.00037107,8]
[311164652,1704953438228,-968.60609467,0.00037131,2]
[311164654,1704953438237,-152.44,0.00037191,2]
[311164656,1704953438247,-538.52790695,0.00037215,4]
[311164658,1704953438257,-155.32100154,0.00037278,7]
[311164660,1704953438267,-153.84,0.00037308,2]
[311164662,1704953438277,-201.735871,0.00037313,7]
[311164664,1704953438287,-411.5729918,0.00037386,2]
[311164666,1704953438297,-7713.0,0.0003739,3]
[311164668,1704953438306,-25000.0,0.000374,2]
[311164670,1704953438316,-176.05,0.000374,2]
[311164672,1704953438325,-1271.1265604,0.000374,2]
[311164674,1704953438336,-185.91896094,0.000374,2]
[311164677,1704953438346,-151.26023629,0.000374,2]
[311164679,1704953438355,-155.1800435,0.000374,28]
[311164681,1704953438364,-348.07329432,0.000374,2]
[311164683,1704953438374,-378.2226324,0.000374,2]
[311164685,1704953438388,-2253.49858842,0.000374,2]
[311164687,1704953438398,-439.69364215,0.00037409,8]
[311164689,1704953438407,-202.28125563,0.00037409,9]
[311164691,1704953438417,-200.0,0.00037434,2]
[311164693,1704953438426,-152.44,0.00037448,2]
[311164695,1704953438435,-1347.90971098,0.00037475,2]
[311164697,1704953438445,-204.0,0.00037482,11]
[311164699,1704953438455,-7669.0,0.0003749,3]
[311164701,1704953438464,-169.79796239,0.00037497,2]
[311164703,1704953438474,-305.54500245,0.00037499,30]
[311164705,1704953438484,-305.54500245,0.00037499,30]
[311164707,1704953438493,-305.54500244,0.00037499,30]
[311164709,1704953438502,-150.0,0.00037499,2]
[311164711,1704953438511,-150.0,0.00037499,2]
[311164713,1704953438521,-200.0,0.000375,2]
[311164715,1704953438533,-13878.32097374,0.000375,2]
[311164718,1704953438546,-39814.96806568,0.000375,2]
[311164720,1704953438557,-18626.91362828,0.000375,2]
[311164877,1704953439911,-499.99,0.000366,2]
[311164879,1704953439921,-3535.52749442,0.000375,2]
[311164894,1704953440050,-0.12451439,0.00035818,11]
[311164896,1704953440062,-1206.13615971,0.00035818,11]
[311164898,1704953440071,-1194.02576582,0.000375,2]
[311164901,1704953440083,-216180.94587986,0.000375,2]
[311164903,1704953440094,-755.38138686,0.000375,2]
[311164905,1704953440106,-315.13133783,0.000375,2]
[311164908,1704953440121,-1000.0,0.000375,2]
[311164910,1704953440134,-776.99749995,0.000375,2]
[311164913,1704953440146,-953.24121787,0.000375,2]
[311165146,1704953442422,-451.47539772,0.000375,2]
[311165153,1704953442484,-3117.22186123,0.000375,2]
[311165156,1704953442496,-11769.69254608,0.000375,2]
[311165158,1704953442507,-10510.30158207,0.000375,2]
[311165171,1704953442615,-179323.51917134,0.000375,2]
[311165178,1704953442675,-664.00152642,0.000375,2]
[311165192,1704953442791,-74089.95094123,0.000375,2]
[311165462,1704953445512,-155.0,0.00037499,2]
[311165464,1704953445522,-829.2554338,0.00037499,7]
[311165466,1704953445531,-1616.73609179,0.000375,2]
[311165469,1704953445543,-2861.5891611,0.000375,2]
[311165473,1704953445575,-22362.74688521,0.000375,2]
[311165475,1704953445586,-3593.39693038,0.000375,2]
[311165477,1704953445597,-1326.5773138,0.000375,2]
[311165480,1704953445608,-1757.56113422,0.000375,2]
[311165482,1704953445620,-25499.46986561,0.000375,2]
[311165484,1704953445633,-346.27282667,0.000375,2]
[311165487,1704953445647,-999.63790966,0.000375,2]
[311165489,1704953445657,-6939.74377319,0.000375,2]
[311165492,1704953445681,-373.41198185,0.000375,2]
[311165500,1704953445744,-897.47245574,0.000375,2]
[311165503,1704953445758,-294.57000514,0.000375,2]
[311165509,1704953445805,-473.40033783,0.000375,2]
[311165512,1704953445819,-1884.97414739,0.000375,2]
[311165514,1704953445833,-1270.22808393,0.000375,2]
[311165927,1704953968193,150.0,3.5e-05,2]
[311165928,1704954429111,-212.42556709,0.00030646,4]
[311165931,1704954545499,-155.0,0.00027581,2]
[311165932,1704954545519,-1000.0,0.00030644,2]
[311165933,1704954545540,-500.0,0.00030646,2]
[311165934,1704954545560,-500.0,0.00030646,2]
[311165935,1704954545582,-300.0,0.0003075,2]
[311165936,1704954545845,282.97818772,0.00027581,2]
[311165937,1704954555367,362.489,0.00033202,2]
[311165938,1704954556889,-416.22,0.00033374,2]
[311165939,1704954559484,500.0,0.00030646,2]
[311165940,1704954565345,5148.6979,0.00030547,14]
[311165941,1704954565433,155.0,0.00027581,2]
[311165944,1704954577841,350.0,0.00025,3]
[311165945,1704954579066,400.0,0.00027,3]
[311165946,1704954580149,450.0,0.00029,3]
[311165947,1704954581470,251.44112676,0.00027581,2]
[311165948,1704954581532,500.0,0.00030646,2]
[311165951,1704954603593,500.0,0.00030646,2]
[311165967,1704954633296,-1000.0,0.00033498,2]
[311165968,1704954633309,-419.39473217,0.00033499,4]
[311165969,1704954633324,-499.99,0.00034,2]
[311165970,1704954633334,-1369.16051081,0.00034,20]
[311165971,1704954633361,-83.93948919,0.00034,20]
[311165972,1704954633372,-526.00352271,0.00034,4]
[311165973,1704954633399,-473.99647729,0.00034,4]
[311165974,1704954633410,-441.72352271,0.0003452,2]
[311165975,1704954633426,-7.98577729,0.0003452,2]
[311165976,1704954633439,-1564.11294268,0.00034747,2]
[311165977,1704954633456,-4459.21705732,0.00034747,2]
[311165978,1704954633466,-150.0,0.00034793,3]
[311165979,1704954633479,-150.0,0.00034793,3]
[311165980,1704954633493,-674.56395,0.00034794,2]
[311165981,1704954633504,-500.0,0.000348,2]
[311165982,1704954633519,-2000.0,0.000348,2]
[311165983,1704954633534,-250.64269673,0.000348,2]
[311165984,1704954633545,-279.0,0.000348,2]
[311165985,1704954633557,-311.32142152,0.000348,2]
[311165986,1704954633570,-1094.92430351,0.000348,2]
[311165987,1704954633588,-6955.19569649,0.000348,2]
[311165988,1704954633603,-320.0,0.000348,5]
[311165989,1704954633615,-899.4186,0.00034931,2]
[311165992,1704954633631,-602.65750152,0.00034999,4]
[311165994,1704954633644,-250.0,0.00035,2]
[311165996,1704954633656,-3361.40004199,0.00035,2]
[311165997,1704954633669,-6867.75235966,0.00035,2]
[311165999,1704954633682,-37638.3481016,0.00035,2]
[311166001,1704954633693,-1124.27325,0.00035068,2]
[311166002,1704954633704,-234.19,0.00035152,2]
[311166003,1704954633716,-179.1,0.00035192,2]
[311166004,1704954633728,-400.0,0.00035228,2]
[311166005,1704954633740,-2000.0,0.00035229,2]
[311166006,1704954633752,-600.0,0.00035234,2]
[311166007,1704954633764,-186.31,0.0003532,2]
[311166008,1704954633775,-162.94,0.0003532,15]
[311166009,1704954633785,-1573.98255,0.00035342,2]
[311166010,1704954633799,-179.1,0.00035374,10]
[311166011,1704954633815,-250.0,0.00035445,2]
[311166012,1704954633827,-159.31,0.00035449,2]
[311166013,1704954633840,-154.58,0.00035473,2]
[311166014,1704954633853,-169.14,0.00035531,2]
[311166015,1704954633865,-2370.50397937,0.000356,2]
[311166016,1704954633889,-1232.00144346,0.000356,2]
[311166017,1704954633916,-572.01503807,0.000356,2]
[311166018,1704954633930,-667.8614337,0.000356,2]
[311166019,1704954633948,-387.20014982,0.000356,2]
[311166020,1704954633961,-114.10680621,0.00035616,2]
[311166021,1704954633988,-39.08319379,0.00035616,2]
[311166022,1704954634000,-1000.0,0.00035625,2]
[311166023,1704954634013,-416.22,0.00035638,2]
[311166024,1704954634024,-370.07215398,0.00035818,11]
[311166025,1704954634037,-421.0,0.00036,2]
[311166026,1704954634049,-151.40111,0.00036148,4]
[311166027,1704954634060,-179.1,0.00036171,2]
[311166028,1704954634072,-151.40111,0.00036198,4]
[311166029,1704954634084,-151.40111,0.00036248,4]
[311166030,1704954634096,-151.40111,0.00036298,4]
[311166031,1704954634107,-151.40111,0.00036348,4]
[311166032,1704954634119,-151.40111,0.00036398,4]
[311166033,1704954634130,-151.40111,0.00036448,6]
[311166034,1704954634142,-151.40111,0.00036498,4]
[311166035,1704954634153,-250.0,0.000365,2]
[311166036,1704954634164,-176.05,0.000365,2]
[311166037,1704954634176,-151.40111,0.00036548,6]
[311166038,1704954634188,-151.40111,0.00036598,4]
[311166039,1704954634200,-400.0,0.000366,13]
[311166040,1704954634211,-151.40111,0.00036648,6]
[311166041,1704954634222,-151.40111,0.00036698,4]
[311166042,1704954634233,-900.0,0.000367,13]
[311166043,1704954634244,-151.40111,0.00036748,6]
[311166044,1704954634255,-155.37,0.00036794,2]
[311166045,1704954634270,-122.00942036,0.00036798,4]
[311166048,1704954637636,-29.39168964,0.00036798,4]
[311166049,1704954637648,-775.08159329,0.000368,13]
[311166050,1704954637660,-261.6596807,0.000368,13]
[311166051,1704954637705,-363.25872601,0.000368,13]
[311166052,1704954637715,-151.40111,0.00036848,6]
[311166053,1704954637724,-1.98156437,0.00036898,4]
[311166054,1704954637866,-149.41954563,0.00036898,4]
[311166055,1704954637876,-1119.45036486,0.000369,13]
[311166056,1704954637893,-780.54963514,0.000369,13]
[311166057,1704954637904,-164.08,0.0003693,2]
[311166058,1704954637913,-28.04204256,0.00036998,4]
[311166059,1704954637924,-123.35906744,0.00036998,4]
[311166060,1704954637934,-5000.0,0.00037,3]
[311166061,1704954637943,-697.67580157,0.00037,2]
[311166062,1704954637986,-4353.14047839,0.00037,2]
[311166063,1704954637996,-5000.0,0.00037,30]
[311166064,1704954638006,-176.05,0.00037048,2]
[311166065,1704954638016,-151.40111,0.00037098,6]
[311166066,1704954638026,-295.64955759,0.000371,2]
[311166067,1704954638036,-6830.2113,0.000371,2]
[311166068,1704954638046,-153.19,0.000371,2]
[311166069,1704954638055,-179.1,0.00037107,10]
[311166070,1704954638064,-194.73364,0.0003712,2]
[311166071,1704954638074,-502.09793543,0.00037134,30]
[311166072,1704954638084,-516.602292,0.00037134,2]
[311166073,1704954638094,-179.1,0.00037149,2]
[311166074,1704954638104,-151.40111,0.00037198,6]
[311166075,1704954638113,-155.83762167,0.00037199,4]
[311166076,1704954638123,-13232.2288,0.000372,2]
[311166077,1704954638133,-19898.01112285,0.000372,2]
[311166078,1704954638145,-876.30395543,0.000372,2]
[311166080,1704954638158,-704.13939175,0.000372,2]
[311166083,1704954638169,-350.20110314,0.000372,2]
[311166085,1704954638180,-787.43501792,0.000372,2]
[311166088,1704954638204,-502.61833434,0.000372,2]
[311166103,1704954638332,-0.15520552,0.000372,2]
[311166179,1704954640072,-1845.64457266,0.000372,2]
[311166180,1704954640134,-1543.32883663,0.000372,2]
[311166181,1704954640146,-1572.90815554,0.000372,2]
[311166182,1704954640160,-5496.19691027,0.000372,2]
[311166183,1704954640758,-12870.61689395,0.000372,2]
[311166184,1704954640768,-2383.6877,0.000372,2]
[311166185,1704954640777,-7832.1005,0.000372,2]
[311166186,1704954640786,-632.8073,0.000372,7]
[311166187,1704954640796,-853.4202,0.000372,2]
[311166188,1704954640805,-2545.0673,0.000372,2]
[311166189,1704954640814,-1347.90971098,0.00037206,2]
[311166190,1704954640824,-295.64955757,0.00037249,2]
[311166191,1704954640833,-200.0,0.00037261,2]
[311166192,1704954640843,-151.40111,0.00037298,6]
[311166193,1704954640852,-232.93795256,0.00037298,4]
[311166194,1704954640861,-882.50658598,0.00037298,7]
[311166195,1704954640870,-475.54631643,0.00037298,4]
[311166196,1704954640879,-155.0,0.00037298,2]
[311166197,1704954640889,-69321.2359,0.000373,2]
[311166198,1704954640898,-56472.4547,0.000373,2]
[311166199,1704954640909,-384.73193689,0.000373,8]
[311166200,1704954640919,-202.28125563,0.000373,9]
[311166201,1704954640929,-154.58,0.00037321,2]
[311166202,1704954640938,-200.0,0.00037322,2]
[311166203,1704954640947,-829.22,0.00037343,2]
[311166204,1704954640956,-196.944,0.00037343,2]
[311166205,1704954640968,-1007.356,0.00037343,2]
[311166206,1704954640978,-1144.461,0.00037343,2]
[311166207,1704954640987,-200.0,0.00037383,2]
[311166208,1704954640997,-7406.0,0.0003739,3]
[311166210,1704954641007,-155.3,0.0003739,2]
[311166212,1704954641016,-155.75181538,0.00037398,4]
[311166214,1704954641026,-590.71826427,0.00037398,4]
[311166216,1704954641035,-151.40111,0.00037398,6]
[311166218,1704954641044,-295.64955757,0.00037398,2]
[311166220,1704954641053,-909.62559085,0.00037399,4]
[311166222,1704954641063,-3011.52924255,0.00037399,3]
[311166224,1704954641073,-7500.0,0.000374,2]
[311166226,1704954641083,-13222.3579,0.000374,2]
[311166229,1704954641094,-151.26023629,0.000374,2]
[311166231,1704954641104,-864.70960009,0.000374,2]
[311166232,1704954641114,-9078.84652472,0.000374,10]
[311166234,1704954641124,-533.34374136,0.000374,2]
[311166236,1704954641134,-3083.18347073,0.000374,3]
[311166239,1704954641147,-1679.07687545,0.000374,3]
[311166241,1704954641161,-1252.93658706,0.000374,3]
[311166243,1704954641173,-1314.96246063,0.000374,3]
[311166246,1704954641186,-2093.41208406,0.000374,3]
[311166248,1704954641203,-1380.14617822,0.000374,3]
[311166249,1704954641216,-851.1546,0.000374,3]
[311166250,1704954641229,-393.90738857,0.000374,3]
[311166251,1704954641242,-612.30199869,0.000374,3]
[311166252,1704954641254,-42893.91835659,0.000374,3]
[311166253,1704954641265,-847.41770694,0.000374,2]
[311166254,1704954641276,-179.31811385,0.000374,28]
[311166255,1704954641287,-452.33350168,0.000374,2]
[311166256,1704954641298,-200.0,0.00037443,2]
[311166257,1704954641309,-5989.63249528,0.00037489,10]
[311166259,1704954641320,-1497.40812382,0.00037489,10]
[311166261,1704954641333,-31445.5706002,0.0003749,10]
[311166263,1704954641344,-155.38981304,0.0003749,2]
[311166265,1704954641353,-7406.0,0.0003749,3]
[311166267,1704954641362,-252.15556224,0.00037498,4]
[311166269,1704954641371,-155.42281929,0.00037498,4]
[311166271,1704954641381,-151.40111,0.00037498,6]
[311166273,1704954641391,-1000.0,0.00037498,2]
[311166275,1704954641400,-306.0,0.00037498,5]
[311166277,1704954641411,-32721.28757713,0.00037499,4]
[311166279,1704954641421,-1000.0,0.00037499,2]
[311166281,1704954641430,-1000.0,0.00037499,2]
[311166282,1704954641440,-1000.0,0.00037499,2]
[311166283,1704954641449,-1000.0,0.00037499,2]
[311166284,1704954641458,-1000.0,0.00037499,2]
[311166285,1704954641467,-1000.0,0.00037499,2]
[311166286,1704954641476,-1000.0,0.00037499,2]
[311166287,1704954641485,-1000.0,0.00037499,2]
[311166288,1704954641494,-881.38654545,0.00037499,2]
[311166289,1704954641503,-150.0,0.00037499,2]
[311166290,1704954641513,-730.12944338,0.000375,2]
[311166291,1704954641522,-142123.69229763,0.000375,2]
[311166327,1704954642893,-457.86,0.00037343,2]
[311166328,1704954643004,-1495.615,0.00037343,2]
[311166329,1704954643013,-4748.29394464,0.000375,2]
[311166330,1704954643025,-471.06540919,0.000375,2]
[311166331,1704954643037,-373.45767937,0.000375,2]
[311166332,1704954643048,-523.7000001,0.000375,2]
[311166333,1704954643066,-23893.8302929,0.000375,2]
[311166334,1704954643078,-1374.79618899,0.000375,2]
[311166335,1704954643090,-3379.86537171,0.000375,2]
[311166336,1704954643102,-1051.547,0.000375,2]
[311166337,1704954643186,-1125435.87028821,0.000375,2]
[311166338,1704954643257,-500.0,0.000375,2]
[311166339,1704954643269,-3040.08914744,0.000375,2]
[311166340,1704954643302,-592.53143083,0.000375,2]
[311166345,1704954648325,-460.28264143,0.00037199,4]
[311166346,1704954648335,-77.34928664,0.00037499,4]
[311166347,1704954648346,-419.59727266,0.00037499,4]
[311166348,1704954648378,-503.0534407,0.00037499,4]
[311166349,1704954648387,-1000.0,0.00037499,10]
[311166350,1704954648397,-16.15768606,0.000375,2]
[311166351,1704954648408,-972.44269312,0.000375,2]
[311166352,1704954648420,-257.99,0.000375,2]
[311166353,1704954648432,-932.14062538,0.000375,2]
[311166354,1704954655658,156.15129015,0.00027581,2]
[311166357,1704955625100,-1000.0,0.00030394,2]
[311166358,1704955625120,-728.43108856,0.00030394,4]
[311166359,1704955625139,-153.0,0.00030395,2]
[311166360,1704955625159,-284.99580875,0.000304,2]
[311166361,1704955625179,-384.98,0.00030429,2]
[311166362,1704955625200,-595.01017994,0.00031949,2]
[311166363,1704955640106,-300.0,0.00030394,2]
[311166364,1704955640129,-381.42126451,0.00031949,2]
[311166369,1704955759086,-1000.0,0.00031948,2]
[311166370,1704955759107,-1049.89855555,0.00031949,2]
[311166371,1704955759129,-250.0,0.00031953,2]
[311166372,1704955759150,-186.31,0.00031963,2]
[311166373,1704955759171,-153.51,0.00032008,2]
[311166374,1704955759190,-250.0,0.00032011,2]
[311166375,1704955759211,-428.74884518,0.00032012,2]
[311166376,1704955759231,-250.0,0.00032089,2]
[311166377,1704955759253,-179.12,0.00032111,10]
[311166378,1704955759272,-195.15,0.00032111,2]
[311166379,1704955759291,-200.0,0.00032199,2]
[311166380,1704955759312,-428.74884501,0.00032296,2]
[311166381,1704955759334,-320.0,0.00032327,2]
[311166382,1704955759354,-2000.0,0.00032386,2]
[311166383,1704955759373,-428.74884501,0.00032579,2]
[311166384,1704955759393,-384.98,0.00032693,2]
[311166385,1704955759413,-158.36,0.0003273,2]
[311166386,1704955759433,-428.74884501,0.00032863,2]
[311166387,1704955759453,-162.94,0.00032877,15]
[311166388,1704955759472,-150.0,0.00032899,3]
[311166389,1704955759492,-300.0,0.00032899,3]
[311166390,1704955759511,-4216.27081866,0.000329,2]
[311166391,1704955767109,-769.68900182,0.000329,2]
[311166392,1704955769104,-244.04017952,0.000329,2]
[311166393,1704955769125,-61.35640979,0.00033001,2]
[311166394,1704955769151,-97.00359021,0.00033001,2]
[311166395,1704955769172,-153.51,0.00033061,2]
[311166396,1704955769193,-428.74884501,0.00033146,2]
[311166397,1704955769213,-11967.48701142,0.0003316,4]
[311166398,1704955769232,-665.59586042,0.0003316,4]
[311166399,1704955769251,-168.0,0.00033257,2]
[311166400,1704955770712,1747.08,0.00032757,2]
[311166401,1704955771267,744.0,0.00032757,2]
[311166402,1704955772059,1000.0,0.0003249,2]
[311166404,1704955792060,472.13309952,0.0003249,2]
[311166417,1704955831890,-425.19805454,0.00033397,2]
[311166418,1704955831900,-773.988915,0.00033399,6]
[311166419,1704955831909,-369.32093634,0.00033399,2]
[311166420,1704955831919,-348.4791754,0.0003343,2]
[311166421,1704955831931,-80.26966961,0.0003343,2]
[311166422,1704955831942,-150.99,0.0003343,2]
[311166423,1704955831951,-603.00908966,0.00033487,2]
[311166424,1704955832055,-721.06586441,0.00033487,2]
[311166425,1704955832068,-357.46371413,0.00033487,2]
[311166426,1704955832079,-763.01283785,0.00033487,2]
[311166427,1704955832113,-2588.60706725,0.00033487,2]
[311166428,1704955832125,-5279.41945994,0.00033487,2]
[311166429,1704955832136,-2958.2064518,0.00033488,4]
[311166430,1704955832146,-2958.2064518,0.00033489,4]
[311166431,1704955832156,-377.27189962,0.00033495,4]
[311166432,1704955832169,-613.62,0.00033495,4]
[311166433,1704955832178,-1920.1598057,0.00033496,2]
[311166434,1704955832188,-474.12801351,0.00033496,4]
[311166435,1704955832197,-117232.88726459,0.00033497,4]
[311166436,1704955832207,-1000.0,0.00033497,2]
[311166437,1704955832217,-713.47331666,0.00033498,4]
[311166438,1704955832226,-173788.30884245,0.00033498,2]
[311166439,1704955832235,-8135.44808328,0.00033499,4]
[311166440,1704955832246,-5000.0,0.000335,10]
[311166441,1704955832257,-428.74884501,0.00033713,2]
[311166442,1704955832267,-163.45,0.0003377,2]
[311166443,1704955832277,-1479.1032259,0.0003399,5]
[311166444,1704955832286,-428.74884501,0.00033997,2]
[311166445,1704955832295,-1000.0,0.00034,4]
[311166446,1704955832304,-500.0,0.00034,2]
[311166447,1704955832314,-153.51,0.00034115,2]
[311166448,1704955832323,-428.74884501,0.00034281,2]
[311166449,1704955832333,-425.1980545,0.0003437,2]
[311166450,1704955832342,-773.98891497,0.00034471,7]
[311166451,1704955832351,-428.74884501,0.00034564,2]
[311166452,1704955832361,-163.45,0.00034614,2]
[311166453,1704955832370,-428.74884501,0.00034848,2]
[311166454,1704955832379,-384.98,0.00034957,2]
[311166455,1704955832389,-1479.1032259,0.0003499,7]
[311166456,1704955832398,-3419.77024631,0.00035,3]
[311166457,1704955832407,-428.74884501,0.00035131,2]
[311166458,1704955832416,-153.51,0.00035169,2]
[311166459,1704955832426,-1000.9729,0.00035299,2]
[311166460,1704955832435,-153.84,0.00035323,2]
[311166461,1704955832451,-425.1980545,0.00035344,2]
[311166462,1704955832460,-428.74884501,0.00035415,2]
[311166463,1704955832470,-163.45,0.00035458,2]
[311166464,1704955832479,-773.98891497,0.00035542,7]
[311166465,1704955832488,-774.0,0.000356,2]
[311166466,1704955832498,-153.19,0.00035616,2]
[311166467,1704955832508,-428.74884501,0.00035699,2]
[311166468,1704955832518,-206.51450106,0.00035818,11]
[311166469,1704955832527,-378.65516177,0.00035818,11]
[311166470,1704955832537,-428.74884501,0.00035982,2]
[311166471,1704955832546,-205.0,0.00035985,2]
[311166472,1704955832556,-190.83458391,0.00036089,2]
[311166473,1704955832565,-11832.8258072,0.00036132,8]
[311166474,1704955832575,-55240.44368101,0.00036142,2]
[311166475,1704955832585,-202.28125563,0.00036153,8]
[311166476,1704955832594,-1479.1032259,0.00036213,9]
[311166477,1704955832603,-153.51,0.00036223,2]
[311166478,1704955832613,-428.74884501,0.00036266,2]
[311166479,1704955832622,-163.45,0.00036302,2]
[311166480,1704955832632,-425.1980545,0.00036317,2]
[311166481,1704955832641,-320.0,0.00036367,2]
[311166482,1704955832650,-153.84,0.00036393,2]
[311166483,1704955832660,-176.05,0.00036498,2]
[311166484,1704955832669,-428.74884501,0.00036549,2]
[311166485,1704955832678,-200.0,0.000366,13]
[311166486,1704955832690,-773.98891497,0.00036614,8]
[311166487,1704955832699,-500.0,0.000367,13]
[311166488,1704955832709,-500.0,0.0003674,7]
[311166489,1704955832718,-800.0,0.000368,13]
[311166490,1704955832727,-428.74884501,0.00036833,2]
[311166491,1704955832737,-744.0,0.00036851,2]
[311166492,1704955832746,-1000.0,0.000369,13]
[311166493,1704955832756,-4437.3096777,0.0003699,10]
[311166494,1704955832765,-5000.0,0.00037,3]
[311166495,1704955832774,-9472.721184,0.00037,2]
[311166496,1704955832784,-351.04,0.00037046,2]
[311166497,1704955832797,-157.40111,0.00037048,6]
[311166498,1704955832807,-428.74884501,0.00037116,2]
[311166499,1704955832816,-163.45,0.00037147,2]
[311166500,1704955832825,-151.40111,0.00037148,6]
[311166501,1704955832835,-1479.1032259,0.0003719,10]
[311166502,1704955832844,-11775.1889,0.000372,2]
[311166503,1704955832854,-384.98,0.00037221,2]
[311166504,1704955832872,-1479.1032259,0.0003724,10]
[311166505,1704955832887,-151.40111,0.00037248,6]
[311166506,1704955832901,-5000.0,0.0003725,30]
[311166507,1704955832913,-200.0,0.00037261,2]
[311166508,1704955832924,-153.51,0.00037277,2]
[311166509,1704955832939,-1479.1032259,0.0003729,10]
[311166510,1704955832952,-425.1980545,0.0003729,2]
[311166511,1704955832966,-735.01,0.000373,2]
[311166512,1704955832979,-891.21641604,0.000373,2]
[311166513,1704955832992,-153.59719657,0.000373,12]
[311166514,1704955833006,-735.01,0.000373,30]
[311166515,1704955833019,-200.0,0.00037322,2]
[311166516,1704955833031,-151.40111,0.00037348,6]
[311166517,1704955833041,-200.0,0.00037383,2]
[311166518,1704955833053,-8874.6193554,0.0003739,10]
[311166519,1704955833066,-6578.0,0.0003739,3]
[311166520,1704955833078,-153.19,0.00037397,2]
[311166521,1704955833091,-151.26023629,0.00037399,2]
[311166522,1704955833103,-7500.0,0.000374,2]
[311166523,1704955833117,-245000.0,0.000374,2]
[311166524,1704955833130,-583.2621,0.000374,3]
[311166525,1704955833143,-176.65842551,0.000374,10]
[311166526,1704955833154,-428.74884501,0.000374,2]
[311166527,1704955833164,-9935.04940724,0.000374,10]
[311166528,1704955833179,-301.55566778,0.000374,2]
[311166529,1704955833192,-564.94513796,0.000374,2]
[311166530,1704955833205,-369.32093633,0.000374,2]
[311166531,1704955833220,-2376.22725735,0.000374,2]
[311166532,1704955833234,-252.1484216,0.000374,2]
[311166533,1704955833245,-200.0,0.00037443,2]
[311166534,1704955833258,-200.0,0.00037443,10]
[311166535,1704955833269,-800.0,0.00037443,10]
[311166536,1704955833281,-151.40111,0.00037448,6]
[311166537,1704955833294,-153.84,0.00037463,2]
[311166538,1704955833307,-7125.0,0.0003749,3]
[311166539,1704955833319,-211.53084027,0.00037496,4]
[311166540,1704955833331,-236.42010776,0.00037496,2]
[311166541,1704955833344,-249.43117852,0.00037496,4]
[311166542,1704955833354,-440.22074132,0.00037496,2]
[311166543,1704955833364,-8732.69824967,0.00037496,3]
[311166544,1704955833374,-49852.7525014,0.00037496,2]
[311166545,1704955833385,-329.52896657,0.00037497,4]
[311166546,1704955833397,-155.67810569,0.00037497,4]
[311166547,1704955833409,-477.05383782,0.00037497,4]
[311166548,1704955833432,-4322.32624276,0.00037497,4]
[311166549,1704955833452,-155.0,0.00037497,2]
[311166550,1704955833470,-1160.74547038,0.00037497,2]
[311166551,1704955833481,-19092.13380533,0.00037497,4]
[311166552,1704955833492,-191.41641656,0.00037497,4]
[311166553,1704955833504,-301.20793522,0.00037497,2]
[311166554,1704955833516,-3812.64771599,0.00037498,4]
[311166555,1704955833529,-2911.59134106,0.00037498,4]
[311166556,1704955833541,-221.33295309,0.00037498,4]
[311166557,1704955833552,-172.46613892,0.00037498,2]